fUSD/lending_fUSD_20260703
["ID","MTS","AMOUNT","RATE_DAILY","PERIOD"]
[426945673,1783043443000,-0.00022879,0.000268,2]
[426945672,1783043443000,-591.8565165,0.000268,2]
[426945670,1783043443000,-270.99990144,0.00026743,2]
[426945671,1783043443000,-307.85009856,0.000268,2]
[426945679,1783043446000,-438.02529403,0.00026743,2]
[426945682,1783043446000,-630.64213075,0.000268,2]
[426945681,1783043446000,-1649.56146877,0.000268,2]
[426945680,1783043446000,-3347.44124017,0.000268,2]
[426945709,1783044631000,-151.0,0.00018952,2]
[426945705,1783044631000,-150.0,0.00018952,2]
[426945708,1783044631000,-151.0,0.00018952,2]
[426945703,1783044631000,-152.0,0.00018952,2]
[426945704,1783044631000,-152.0,0.00018952,2]
[426945706,1783044631000,-151.0,0.00018952,2]
[426945711,1783044631000,-150.0,0.00018952,2]
[426945700,1783044631000,-293.699823,0.00018952,3]
[426945701,1783044631000,-551.94000459,0.00018952,2]
[426945699,1783044631000,-500.0,0.00018952,3]
[426945702,1783044631000,-153.0,0.00018952,2]
[426945707,1783044631000,-151.0,0.00018952,2]
[426945719,1783044631000,-150.0,0.0001995,2]
[426945713,1783044631000,-283.01,0.00019355,7]
[426945710,1783044631000,-150.0,0.00018952,2]
[426945720,1783044631000,-151.0,0.0001995,2]
[426945718,1783044631000,-151.0,0.0001995,2]
[426945721,1783044631000,-151.0,0.0001995,2]
[426945722,1783044631000,-151.0,0.0001995,2]
[426945717,1783044631000,-153.0,0.0001995,2]
[426945714,1783044631000,-850.0,0.00019949,2]
[426945715,1783044631000,-350.47,0.0001995,2]
[426945712,1783044631000,-500.0,0.0001911,3]
[426945716,1783044631000,-151.0,0.0001995,2]
[426945723,1783044631000,-150.0,0.0001995,2]
[426945724,1783044631000,-150.0,0.0001995,2]
[426945744,1783044632000,-370.0,0.00020395,9]
[426945734,1783044632000,-151.0,0.0001995,2]
[426945741,1783044632000,-896.0,0.00020261,2]
[426945740,1783044632000,-914.0,0.00020109,2]
[426945747,1783044632000,-500.0,0.00021,2]
[426945737,1783044632000,-500.0,0.0002,3]
[426945733,1783044632000,-152.0,0.0001995,2]
[426945732,1783044632000,-151.0,0.0001995,2]
[426945730,1783044632000,-151.0,0.0001995,2]
[426945735,1783044632000,-152.0,0.0001995,2]
[426945727,1783044632000,-150.0,0.0001995,2]
[426945726,1783044632000,-151.0,0.0001995,2]
[426945728,1783044632000,-152.0,0.0001995,2]
[426945729,1783044632000,-150.0,0.0001995,2]
[426945725,1783044632000,-153.0,0.0001995,2]
[426945739,1783044632000,-500.0,0.0002,2]
[426945731,1783044632000,-151.0,0.0001995,2]
[426945736,1783044632000,-153.0,0.0001995,2]
[426945746,1783044632000,-600.0,0.00020847,2]
[426945742,1783044632000,-887.0,0.00020261,2]
[426945738,1783044632000,-500.0,0.0002,3]
[426945762,1783044632000,-768.87675137,0.0002174,2]
[426945760,1783044632000,-1463.6593082,0.0002174,2]
[426945761,1783044632000,-2065.91977482,0.0002174,2]
[426945759,1783044632000,-3454.76845368,0.0002174,2]
[426945751,1783044632000,-208.83953641,0.000215,2]
[426945755,1783044632000,-208.83953641,0.000217,2]
[426945757,1783044632000,-48185.29488137,0.0002174,2]
[426945753,1783044632000,-152.85,0.00021607,2]
[426945758,1783044632000,-34075.99910609,0.0002174,2]
[426945754,1783044632000,-563.2,0.00021669,2]
[426945750,1783044632000,-216.69616408,0.00021499,2]
[426945756,1783044632000,-1421.75124286,0.000217,2]
[426945749,1783044632000,-160.0,0.00021499,2]
[426945748,1783044632000,-198.42495575,0.00021,2]
[426945745,1783044632000,-354.62771769,0.00020847,2]
[426945752,1783044632000,-1421.75124286,0.000215,2]
[426945743,1783044632000,-899.0,0.00020382,2]
[426945808,1783044638000,-260.42,0.00025152,2]
[426945805,1783044638000,-154.50275959,0.00024907,2]
[426945801,1783044638000,-182.78,0.00024658,2]
[426945803,1783044638000,-216.49654206,0.00024902,2]
[426945811,1783044638000,-150.0,0.00025373,2]
[426945800,1783044638000,-13463.41447769,0.00024646,2]
[426945795,1783044638000,-831.1,0.00024514,2]
[426945798,1783044638000,-151.0,0.00024644,7]
[426945810,1783044638000,-1035.77018854,0.00025193,2]
[426945802,1783044638000,-182.68,0.00024658,2]
[426945807,1783044638000,-831.1,0.00025084,2]
[426945817,1783044638000,-150.0,0.00026,5]
[426945806,1783044638000,-850.0,0.00025,2]
[426945809,1783044638000,-1889.42357108,0.00025163,2]
[426945823,1783044638000,-179.20283266,0.00026155,2]
[426945812,1783044638000,-250.0,0.0002552,2]
[426945813,1783044638000,-327.87,0.00025618,120]
[426945822,1783044638000,-397.38016401,0.00026155,2]
[426945819,1783044638000,-151.77330633,0.00026154,2]
[426945793,1783044638000,-151.0,0.00024473,7]
[426945814,1783044638000,-161.76,0.00025675,7]
[426945816,1783044638000,-1889.42357108,0.00025769,2]
[426945815,1783044638000,-151.77330633,0.00025723,2]
[426945818,1783044638000,-188.27,0.00026,2]
[426945804,1783044638000,-198.690082,0.00024902,2]
[426945794,1783044638000,-6398.91646824,0.00024476,2]
[426945783,1783044638000,-831.1,0.00023374,2]
[426945791,1783044638000,-9116.1,0.00024174,2]
[426945820,1783044638000,-158.99206281,0.00026155,2]
[426945769,1783044638000,-33117.24172447,0.0002174,2]
[426945770,1783044638000,-396.92,0.00021753,2]
[426945771,1783044638000,-1421.75124286,0.000219,2]
[426945775,1783044638000,-743.72802865,0.00021992,2]
[426945774,1783044638000,-187.16,0.00021932,2]
[426945773,1783044638000,-632.31,0.00021918,2]
[426945772,1783044638000,-150.0,0.00021918,2]
[426945776,1783044638000,-500.0,0.00022,3]
[426945777,1783044638000,-1421.75124286,0.000221,2]
[426945780,1783044638000,-2438.87,0.00022771,2]
[426945796,1783044638000,-1889.42357111,0.00024558,2]
[426945779,1783044638000,-327.87,0.00022771,2]
[426945781,1783044638000,-831.1,0.00022804,2]
[426945785,1783044638000,-5000.0,0.0002374,2]
[426945782,1783044638000,-150.0,0.00023014,2]
[426945784,1783044638000,-152.9,0.0002374,2]
[426945787,1783044638000,-734.0802061,0.00023952,2]
[426945789,1783044638000,-150.0,0.00024164,2]
[426945799,1783044638000,-151.0,0.00024644,7]
[426945788,1783044638000,-166.28,0.0002416,2]
[426945792,1783044638000,-1081.96,0.00024251,2]
[426945790,1783044638000,-1018.13410328,0.00024173,2]
[426945797,1783044638000,-151.0,0.00024644,7]
[426945778,1783044638000,-1421.75124286,0.000223,2]
[426945821,1783044638000,-432.99308412,0.00026155,2]
[426945786,1783044638000,-831.1,0.00023944,2]
[426945824,1783044638000,-158.97759252,0.00026155,2]
[426945854,1783044638000,-151.0,0.00026459,2]
[426945856,1783044638000,-471.956197,0.00026459,2]
[426945849,1783044638000,-706.882534,0.00026459,2]
[426945858,1783044638000,-471.956197,0.00026459,2]
[426945853,1783044638000,-151.0,0.00026459,2]
[426945861,1783044638000,-151.0,0.00026459,2]
[426945862,1783044638000,-153.324504,0.00026459,2]
[426945860,1783044638000,-471.956197,0.00026459,2]
[426945878,1783044638000,-151.0,0.00026592,2]
[426945865,1783044638000,-150.4554509,0.00026475,5]
[426945866,1783044638000,-664.0,0.00026475,5]
[426945852,1783044638000,-175.565002,0.00026459,2]
[426945868,1783044638000,-1023.88,0.000265,2]
[426945870,1783044638000,-467.91028424,0.00026557,2]
[426945867,1783044638000,-2000.0,0.00026481,2]
[426945864,1783044638000,-150.0,0.00026475,5]
[426945869,1783044638000,-384.0,0.00026511,2]
[426945871,1783044638000,-157.271866,0.00026581,2]
[426945874,1783044638000,-151.0,0.00026592,2]
[426945873,1783044638000,-151.0,0.00026592,2]
[426945872,1783044638000,-157.073916,0.00026581,2]
[426945876,1783044638000,-151.0,0.00026592,2]
[426945875,1783044638000,-151.0,0.00026592,2]
[426945877,1783044638000,-151.0,0.00026592,2]
[426945863,1783044638000,-151.0,0.00026459,2]
[426945855,1783044638000,-471.956197,0.00026459,2]
[426945826,1783044638000,-195.49404364,0.00026155,2]
[426945859,1783044638000,-151.0,0.00026459,2]
[426945857,1783044638000,-151.0,0.00026459,2]
[426945830,1783044638000,-168.42700139,0.00026155,2]
[426945825,1783044638000,-153.15564899,0.00026155,2]
[426945828,1783044638000,-154.64660227,0.00026155,2]
[426945827,1783044638000,-218.59225282,0.00026155,2]
[426945829,1783044638000,-153.402885,0.00026155,2]
[426945835,1783044638000,-309.00551918,0.0002616,2]
[426945833,1783044638000,-173.51933991,0.00026155,2]
[426945831,1783044638000,-202.73407249,0.00026155,2]
[426945834,1783044638000,-160.08032367,0.00026155,2]
[426945837,1783044638000,-155.13634018,0.00026166,2]
[426945847,1783044638000,-706.882534,0.00026459,2]
[426945832,1783044638000,-150.12319567,0.00026155,2]
[426945838,1783044638000,-250.82213622,0.00026319,2]
[426945851,1783044638000,-151.0,0.00026459,2]
[426945836,1783044638000,-322.29318942,0.00026166,2]
[426945850,1783044638000,-706.882534,0.00026459,2]
[426945848,1783044638000,-706.882534,0.00026459,2]
[426945846,1783044638000,-4367.795,0.00026459,13]
[426945845,1783044638000,-169.128,0.00026459,13]
[426945844,1783044638000,-322.29318942,0.0002644,2]
[426945841,1783044638000,-300.51,0.00026355,2]
[426945839,1783044638000,-257.04754162,0.00026319,2]
[426945842,1783044638000,-1889.42357108,0.00026374,2]
[426945840,1783044638000,-350.0,0.00026324,2]
[426945843,1783044638000,-159.19348536,0.00026416,14]
[426945912,1783044639000,-681.187007,0.00026657,2]
[426945921,1783044639000,-151.0,0.00026657,2]
[426945931,1783044639000,-204.86869797,0.00026692,2]
[426945923,1783044639000,-471.956197,0.00026657,2]
[426945915,1783044639000,-706.882534,0.00026657,2]
[426945914,1783044639000,-151.0,0.00026657,2]
[426945911,1783044639000,-681.187007,0.00026657,2]
[426945919,1783044639000,-151.0,0.00026657,2]
[426945916,1783044639000,-706.882534,0.00026657,2]
[426945913,1783044639000,-151.0,0.00026657,2]
[426945920,1783044639000,-151.0,0.00026657,2]
[426945918,1783044639000,-706.882534,0.00026657,2]
[426945932,1783044639000,-299.08486016,0.000267,2]
[426945937,1783044639000,-390.65601091,0.000267,2]
[426945924,1783044639000,-151.0,0.00026657,2]
[426945925,1783044639000,-471.956197,0.00026657,2]
[426945926,1783044639000,-151.0,0.00026657,2]
[426945928,1783044639000,-151.0,0.00026657,2]
[426945927,1783044639000,-471.956197,0.00026657,2]
[426945930,1783044639000,-350.0,0.00026685,2]
[426945929,1783044639000,-151.0,0.00026657,2]
[426945933,1783044639000,-151.0,0.000267,2]
[426945935,1783044639000,-4964.5952,0.000267,2]
[426945936,1783044639000,-161.53207991,0.000267,5]
[426945938,1783044639000,-172.80157194,0.000267,2]
[426945917,1783044639000,-706.882534,0.00026657,2]
[426945941,1783044639000,-155.13634018,0.00026714,2]
[426945922,1783044639000,-471.956197,0.00026657,2]
[426945907,1783044639000,-201.366453,0.00026657,2]
[426945905,1783044639000,-201.366453,0.00026657,2]
[426945906,1783044639000,-201.366453,0.00026657,2]
[426945880,1783044639000,-151.0,0.00026592,2]
[426945882,1783044639000,-151.0,0.00026592,2]
[426945881,1783044639000,-151.0,0.00026592,2]
[426945945,1783044639000,-500.0,0.00026756,2]
[426945879,1783044639000,-151.0,0.00026592,2]
[426945884,1783044639000,-201.366453,0.00026592,2]
[426945885,1783044639000,-201.366453,0.00026592,2]
[426945888,1783044639000,-681.187007,0.00026592,2]
[426945886,1783044639000,-201.366453,0.00026592,2]
[426945887,1783044639000,-201.366453,0.00026592,2]
[426945889,1783044639000,-681.187007,0.00026592,2]
[426945890,1783044639000,-681.187007,0.00026592,2]
[426945891,1783044639000,-681.187007,0.00026592,2]
[426945908,1783044639000,-201.366453,0.00026657,2]
[426945892,1783044639000,-151.0,0.00026592,2]
[426945895,1783044639000,-33366.7554,0.00026657,2]
[426945904,1783044639000,-2935.99475211,0.00026657,2]
[426945894,1783044639000,-150.0,0.00026641,2]
[426945896,1783044639000,-151.0,0.00026657,2]
[426945897,1783044639000,-151.0,0.00026657,2]
[426945898,1783044639000,-154.708798,0.00026657,2]
[426945899,1783044639000,-151.0,0.00026657,2]
[426945902,1783044639000,-151.0,0.00026657,2]
[426945903,1783044639000,-151.0,0.00026657,2]
[426945900,1783044639000,-151.0,0.00026657,2]
[426945901,1783044639000,-151.0,0.00026657,2]
[426945910,1783044639000,-681.187007,0.00026657,2]
[426945909,1783044639000,-681.187007,0.00026657,2]
[426945893,1783044639000,-151.0,0.00026592,2]
[426945883,1783044639000,-244.837893,0.00026592,2]
[426945942,1783044639000,-516.84491935,0.00026743,2]
[426945944,1783044639000,-500.0,0.00026756,2]
[426945983,1783044639000,-151.0,0.00026757,2]
[426945974,1783044639000,-151.0,0.00026757,2]
[426945975,1783044639000,-151.0,0.00026757,2]
[426945976,1783044639000,-151.0,0.00026757,2]
[426945979,1783044639000,-151.0,0.00026757,2]
[426945977,1783044639000,-151.0,0.00026757,2]
[426945978,1783044639000,-238.619035,0.00026757,2]
[426945980,1783044639000,-151.0,0.00026757,2]
[426945984,1783044639000,-151.0,0.00026757,2]
[426945990,1783044639000,-151.0,0.00026757,2]
[426945986,1783044639000,-151.0,0.00026757,2]
[426945995,1783044639000,-201.366453,0.00026757,2]
[426945996,1783044639000,-201.366453,0.00026757,2]
[426945994,1783044639000,-201.366453,0.00026757,2]
[426945989,1783044639000,-151.0,0.00026757,2]
[426945988,1783044639000,-151.0,0.00026757,2]
[426945997,1783044639000,-201.366453,0.00026757,2]
[426945991,1783044639000,-201.366453,0.00026757,2]
[426945985,1783044639000,-151.0,0.00026757,2]
[426945987,1783044639000,-163.777298,0.00026757,2]
[426945993,1783044639000,-201.366453,0.00026757,2]
[426945999,1783044639000,-201.366453,0.00026757,2]
[426946003,1783044639000,-201.366455,0.00026757,2]
[426946002,1783044639000,-201.366453,0.00026757,2]
[426945939,1783044639000,-153.27888287,0.000267,2]
[426946001,1783044639000,-201.366453,0.00026757,2]
[426946000,1783044639000,-201.366453,0.00026757,2]
[426945982,1783044639000,-151.0,0.00026757,2]
[426945981,1783044639000,-151.0,0.00026757,2]
[426945998,1783044639000,-201.366453,0.00026757,2]
[426945973,1783044639000,-29769.9892077,0.00026757,2]
[426945972,1783044639000,-151.0,0.00026757,2]
[426945943,1783044639000,-206.12718557,0.00026756,2]
[426945934,1783044639000,-162.698871,0.000267,2]
[426945947,1783044639000,-507.09677297,0.00026756,2]
[426945957,1783044639000,-389.82905594,0.00026756,2]
[426945958,1783044639000,-500.0,0.00026756,2]
[426945949,1783044639000,-500.0,0.00026756,2]
[426945946,1783044639000,-500.0,0.00026756,2]
[426945959,1783044639000,-500.0,0.00026756,2]
[426945948,1783044639000,-509.00243625,0.00026756,2]
[426945950,1783044639000,-504.39603169,0.00026756,2]
[426945951,1783044639000,-292.08861664,0.00026756,2]
[426945952,1783044639000,-503.08979288,0.00026756,2]
[426945954,1783044639000,-500.0,0.00026756,2]
[426945940,1783044639000,-322.29318942,0.00026714,2]
[426945956,1783044639000,-503.22450767,0.00026756,2]
[426945955,1783044639000,-500.0,0.00026756,2]
[426945969,1783044639000,-887.3442241,0.00026757,2]
[426945961,1783044639000,-500.0,0.00026756,2]
[426945971,1783044639000,-151.0,0.00026757,2]
[426945968,1783044639000,-5546.6857145,0.00026757,2]
[426945966,1783044639000,-2366.6269134,0.00026757,2]
[426945963,1783044639000,-500.0,0.00026756,2]
[426945960,1783044639000,-500.0,0.00026756,2]
[426945967,1783044639000,-66488.5493202,0.00026757,2]
[426945970,1783044639000,-151.0,0.00026757,2]
[426945964,1783044639000,-500.0,0.00026756,2]
[426945965,1783044639000,-25752.55908126,0.00026757,2]
[426945962,1783044639000,-500.0,0.00026756,2]
[426946033,1783044640000,-151.0,0.00026757,2]
[426946042,1783044640000,-151.0,0.00026757,2]
[426946034,1783044640000,-153.945034,0.00026757,2]
[426946032,1783044640000,-706.882527,0.00026757,2]
[426946035,1783044640000,-151.0,0.00026757,2]
[426946039,1783044640000,-471.956197,0.00026757,2]
[426946048,1783044640000,-471.956197,0.00026757,2]
[426946045,1783044640000,-151.0,0.00026757,2]
[426946040,1783044640000,-151.0,0.00026757,2]
[426946047,1783044640000,-151.0,0.00026757,2]
[426946046,1783044640000,-471.956197,0.00026757,2]
[426946037,1783044640000,-151.0,0.00026757,2]
[426946051,1783044640000,-471.956197,0.00026757,2]
[426946041,1783044640000,-471.956197,0.00026757,2]
[426946044,1783044640000,-471.956197,0.00026757,2]
[426946043,1783044640000,-471.956197,0.00026757,2]
[426946050,1783044640000,-471.956197,0.00026757,2]
[426946060,1783044640000,-151.0,0.00026757,2]
[426946049,1783044640000,-151.0,0.00026757,2]
[426946052,1783044640000,-151.0,0.00026757,2]
[426946053,1783044640000,-471.956197,0.00026757,2]
[426946054,1783044640000,-243.54636,0.00026757,2]
[426946057,1783044640000,-471.956197,0.00026757,2]
[426946031,1783044640000,-706.882534,0.00026757,2]
[426946038,1783044640000,-151.0,0.00026757,2]
[426946030,1783044640000,-706.882534,0.00026757,2]
[426946014,1783044640000,-681.187007,0.00026757,2]
[426946036,1783044640000,-151.0,0.00026757,2]
[426946056,1783044640000,-151.0,0.00026757,2]
[426946009,1783044640000,-681.187007,0.00026757,2]
[426946010,1783044640000,-681.187007,0.00026757,2]
[426946004,1783044640000,-1008.0266244,0.00026757,2]
[426946007,1783044640000,-681.187007,0.00026757,2]
[426946006,1783044640000,-681.187007,0.00026757,2]
[426946008,1783044640000,-681.187007,0.00026757,2]
[426946005,1783044640000,-681.187007,0.00026757,2]
[426946011,1783044640000,-681.187007,0.00026757,2]
[426946013,1783044640000,-681.187007,0.00026757,2]
[426946016,1783044640000,-681.187007,0.00026757,2]
[426946028,1783044640000,-706.882534,0.00026757,2]
[426946015,1783044640000,-681.187007,0.00026757,2]
[426946012,1783044640000,-681.187007,0.00026757,2]
[426946018,1783044640000,-151.0,0.00026757,2]
[426946019,1783044640000,-151.0,0.00026757,2]
[426946020,1783044640000,-1032.9894825,0.00026757,2]
[426946023,1783044640000,-706.882534,0.00026757,2]
[426946022,1783044640000,-706.882534,0.00026757,2]
[426946024,1783044640000,-706.882534,0.00026757,2]
[426946026,1783044640000,-706.882534,0.00026757,2]
[426946025,1783044640000,-706.882534,0.00026757,2]
[426946027,1783044640000,-706.882534,0.00026757,2]
[426946029,1783044640000,-706.882534,0.00026757,2]
[426946017,1783044640000,-152.450153,0.00026757,2]
[426946055,1783044640000,-471.956197,0.00026757,2]
[426946021,1783044640000,-706.882534,0.00026757,2]
[426946059,1783044640000,-471.956203,0.00026757,2]
[426946093,1783044640000,-500.0,0.00026799,2]
[426946088,1783044640000,-500.0,0.00026799,2]
[426946089,1783044640000,-500.0,0.00026799,2]
[426946086,1783044640000,-151.0,0.00026799,2]
[426946092,1783044640000,-500.0,0.00026799,2]
[426946087,1783044640000,-500.0,0.00026799,2]
[426946103,1783044640000,-500.0,0.00026799,2]
[426946105,1783044640000,-500.0,0.00026799,2]
[426946115,1783044640000,-500.0,0.00026799,2]
[426946123,1783044640000,-500.0,0.00026799,2]
[426946117,1783044640000,-500.0,0.00026799,2]
[426946084,1783044640000,-502.52017757,0.00026799,2]
[426946120,1783044640000,-500.0,0.00026799,2]
[426946107,1783044640000,-500.0,0.00026799,2]
[426946111,1783044640000,-500.0,0.00026799,2]
[426946109,1783044640000,-500.0,0.00026799,2]
[426946119,1783044640000,-513.28637883,0.00026799,2]
[426946118,1783044640000,-634.13990841,0.00026799,2]
[426946114,1783044640000,-500.0,0.00026799,2]
[426946122,1783044640000,-527.90478303,0.00026799,2]
[426946121,1783044640000,-637.09344867,0.00026799,2]
[426946124,1783044640000,-500.0,0.00026799,2]
[426946125,1783044640000,-500.0,0.00026799,2]
[426946058,1783044640000,-151.0,0.00026757,2]
[426946112,1783044640000,-427.89559781,0.00026799,2]
[426946099,1783044640000,-500.0,0.00026799,2]
[426946116,1783044640000,-500.0,0.00026799,2]
[426946095,1783044640000,-500.0,0.00026799,2]
[426946101,1783044640000,-500.0,0.00026799,2]
[426946061,1783044640000,-151.0,0.00026757,2]
[426946064,1783044640000,-6699.0,0.00026767,2]
[426946065,1783044640000,-500.0,0.00026773,2]
[426946062,1783044640000,-151.0,0.00026757,2]
[426946063,1783044640000,-169.6841,0.00026757,2]
[426946067,1783044640000,-326.95704695,0.00026788,2]
[426946066,1783044640000,-460.0,0.00026775,2]
[426946069,1783044640000,-187.39594977,0.0002679,2]
[426946070,1783044640000,-152.0,0.00026792,3]
[426946071,1783044640000,-151.0,0.00026797,7]
[426946072,1783044640000,-279.12440684,0.00026797,7]
[426946080,1783044640000,-500.0,0.00026799,2]
[426946068,1783044640000,-317.2266766,0.00026788,2]
[426946083,1783044640000,-479.01035539,0.00026799,2]
[426946085,1783044640000,-151.0,0.00026799,2]
[426946075,1783044640000,-500.0,0.00026799,2]
[426946079,1783044640000,-500.0,0.00026799,2]
[426946082,1783044640000,-500.0,0.00026799,2]
[426946073,1783044640000,-500.0,0.00026799,2]
[426946097,1783044640000,-500.0,0.00026799,2]
[426946078,1783044640000,-500.0,0.00026799,2]
[426946081,1783044640000,-500.0,0.00026799,2]
[426946074,1783044640000,-500.0,0.00026799,2]
[426946076,1783044640000,-500.0,0.00026799,2]
[426946077,1783044640000,-500.0,0.00026799,2]
[426946165,1783044641000,-151.0,0.00026894,3]
[426946169,1783044641000,-246.31960083,0.0002699,2]
[426946170,1783044641000,-249.04650327,0.0002699,2]
[426946160,1783044641000,-214.693609,0.000268,2]
[426946164,1783044641000,-384.0,0.00026892,2]
[426946161,1783044641000,-182.88835435,0.000268,2]
[426946163,1783044641000,-151.0,0.000268,2]
[426946159,1783044641000,-157.271867,0.000268,2]
[426946162,1783044641000,-151.0,0.000268,2]
[426946154,1783044641000,-547.42626013,0.00026799,2]
[426946168,1783044641000,-322.29318942,0.00026988,2]
[426946167,1783044641000,-1889.42357108,0.00026979,2]
[426946166,1783044641000,-199.48,0.00026974,120]
[426946188,1783044641000,-596.07024601,0.00026991,2]
[426946172,1783044641000,-200.96888899,0.0002699,2]
[426946175,1783044641000,-239.34582937,0.0002699,2]
[426946176,1783044641000,-159.89565831,0.00026991,2]
[426946182,1783044641000,-153.69655744,0.00026991,2]
[426946174,1783044641000,-244.79020676,0.0002699,2]
[426946173,1783044641000,-200.14913514,0.0002699,2]
[426946171,1783044641000,-244.63342155,0.0002699,2]
[426946179,1783044641000,-279.01925471,0.00026991,2]
[426946177,1783044641000,-273.78501901,0.00026991,2]
[426946178,1783044641000,-317.98412561,0.00026991,2]
[426946181,1783044641000,-153.51031089,0.00026991,2]
[426946180,1783044641000,-190.84963966,0.00026991,2]
[426946149,1783044641000,-500.0,0.00026799,2]
[426946183,1783044641000,-224.18442476,0.00026991,2]
[426946151,1783044641000,-300.0,0.00026799,10]
[426946130,1783044641000,-445.79639571,0.00026799,2]
[426946153,1783044641000,-300.0,0.00026799,10]
[426946132,1783044641000,-500.0,0.00026799,2]
[426946133,1783044641000,-500.0,0.00026799,2]
[426946187,1783044641000,-336.26381736,0.00026991,2]
[426946126,1783044641000,-500.0,0.00026799,2]
[426946131,1783044641000,-500.0,0.00026799,2]
[426946129,1783044641000,-500.0,0.00026799,2]
[426946127,1783044641000,-500.0,0.00026799,2]
[426946128,1783044641000,-500.0,0.00026799,2]
[426946134,1783044641000,-500.0,0.00026799,2]
[426946136,1783044641000,-500.0,0.00026799,2]
[426946135,1783044641000,-500.0,0.00026799,2]
[426946137,1783044641000,-500.0,0.00026799,2]
[426946142,1783044641000,-500.0,0.00026799,2]
[426946152,1783044641000,-300.0,0.00026799,10]
[426946144,1783044641000,-500.0,0.00026799,2]
[426946139,1783044641000,-500.0,0.00026799,2]
[426946138,1783044641000,-500.0,0.00026799,2]
[426946143,1783044641000,-500.0,0.00026799,2]
[426946145,1783044641000,-500.0,0.00026799,2]
[426946141,1783044641000,-583.1961925,0.00026799,2]
[426946147,1783044641000,-500.0,0.00026799,2]
[426946158,1783044641000,-2106163.77756376,0.000268,2]
[426946155,1783044641000,-300.0,0.00026799,10]
[426946156,1783044641000,-666.0,0.00026799,2]
[426946146,1783044641000,-500.0,0.00026799,2]
[426946148,1783044641000,-500.0,0.00026799,2]
[426946150,1783044641000,-532.87357416,0.00026799,2]
[426946157,1783044641000,-306.92193211,0.00026799,10]
[426946140,1783044641000,-500.0,0.00026799,2]
[426946184,1783044641000,-248.93703023,0.00026991,2]
[426946186,1783044641000,-188.27313755,0.00026991,2]
[426946193,1783044641000,-317.95518504,0.00026991,2]
[426946223,1783044641000,-295.29596852,0.00026996,2]
[426946231,1783044641000,-500.0,0.00027,7]
[426946222,1783044641000,-286.30261525,0.00026996,2]
[426946229,1783044641000,-500.0,0.00027,7]
[426946232,1783044641000,-500.0,0.00027,7]
[426946234,1783044641000,-500.0,0.00027,7]
[426946230,1783044641000,-500.0,0.00027,7]
[426946233,1783044641000,-500.0,0.00027,7]
[426946224,1783044641000,-286.72750828,0.00026996,2]
[426946228,1783044641000,-500.0,0.00027,7]
[426946225,1783044641000,-463.50827877,0.00026996,2]
[426946226,1783044641000,-500.0,0.00027,7]
[426946227,1783044641000,-500.0,0.00027,7]
[426946235,1783044641000,-500.0,0.00027,7]
[426946239,1783044641000,-500.0,0.00027,7]
[426946237,1783044641000,-500.0,0.00027,7]
[426946241,1783044641000,-500.0,0.00027,7]
[426946238,1783044641000,-500.0,0.00027,7]
[426946236,1783044641000,-500.0,0.00027,7]
[426946240,1783044641000,-500.0,0.00027,7]
[426946243,1783044641000,-548.99,0.00027,7]
[426946242,1783044641000,-500.0,0.00027,7]